{"text_format":"2","workbook":"xlsx","n_sheets":3,"sheets":["Hoja1","Hoja2","Hoja3"],"not_rendered":{"charts":0,"images":1,"macros":0,"external_links":0,"defined_names":1,"comments":0,"pivot_tables":0},"unopened":[],"bounds":{"document_bytes":16777216,"sheet_cells":100000,"run_cost":"one","rows_first":2000,"rows_last":500,"rows_between":2000,"halvings":0,"cell_chars":16384,"cell_head_chars":4096},"cells_cut":0,"cells_raw":0,"read":"whole","date_system":"1900"}

{"sheet":"Hoja1","index":0,"n_rows":97,"n_cols":11,"rows_kept":97,"cut":false,"hidden":false,"merged":[[33,4,33,5],[47,6,47,7],[48,6,48,7],[32,4,32,5],[22,3,22,10],[20,3,20,10],[21,3,21,10],[43,8,45,8],[34,4,34,5],[35,4,35,5],[36,4,36,5],[41,1,41,10],[43,9,45,9],[27,1,27,8],[29,10,31,10],[29,1,31,1],[29,2,31,2],[29,3,31,3],[38,4,38,5],[37,4,37,5],[6,5,6,9],[19,1,19,2],[20,1,20,2],[29,8,31,8],[29,4,31,5],[29,9,31,9],[8,3,8,9],[24,1,25,10],[21,1,21,2],[22,1,22,2],[12,3,12,10],[14,3,14,10],[15,3,15,10],[16,3,16,10],[19,3,19,10],[13,1,13,2],[13,3,13,10],[18,3,18,10],[17,1,17,2],[17,3,17,10],[29,6,30,7],[39,1,39,10],[12,1,12,2],[14,1,14,2],[15,1,15,2],[16,1,16,2],[18,1,18,2],[69,3,69,6],[75,1,75,6],[69,8,69,9],[74,8,74,9],[62,3,62,6],[62,8,62,9],[64,1,64,2],[62,1,62,2],[68,8,68,9],[68,3,68,6],[65,8,65,9],[65,3,65,6],[74,3,74,6],[60,3,60,6],[65,1,65,2],[68,1,68,2],[69,1,69,2],[60,1,60,2],[43,10,45,10],[43,1,45,1],[43,2,45,2],[43,3,45,5],[43,6,45,7],[59,1,59,10],[56,6,56,7],[55,6,55,7],[96,1,98,10],[77,1,78,10],[61,1,61,2],[61,3,61,6],[67,3,67,6],[64,3,64,6],[47,3,47,5],[48,3,48,5],[46,3,46,5],[46,6,46,7],[64,8,64,9],[50,1,50,8],[49,6,49,7],[49,3,49,5],[74,1,74,2],[60,8,60,9],[66,8,66,9],[67,8,67,9],[61,8,61,9],[70,3,70,6],[71,3,71,6],[72,3,72,6],[73,3,73,6],[66,3,66,6],[70,8,70,9],[71,8,71,9],[72,8,72,9],[73,8,73,9],[66,1,66,2],[67,1,67,2],[70,1,70,2],[71,1,71,2],[72,1,72,2],[73,1,73,2]]}
[]
[]
[null,null,"MUNICIPALIDAD PROVINCIAL DE CHICLAYO"]
[{"$nulls":6},"FORMATO N° 01"]
[{"$nulls":6},"FICHA DE RESUMEN CURRICULAR"]
[]
[null,null,null,"PROCESO CAS N° "]
[]
[null,"CODIGO DEL PUESTO AL QUE POSTULA: "]
[]
[null,"1.       DATOS PERSONALES"]
[]
[null,"DNI N°"]
[null,"RUC"]
[null,"Apellidos y Nombres "]
[null,"Fecha de Nacimiento  Dia/Mes/Año"]
[null,"Dirección"]
[null,"Distrito "]
[null,"Estado Civil"]
[null,"Teléfono celular"]
[null,"Teléfono fijo"]
[null,"Correo electrónico"]
[null,"Medio por el cual se enteró del proceso CAS."]
[]
[null,"Los datos consignados en esta ficha deberán ser acreditados en la presentacion física del Currículo. Cuando el postulante no adjunte documentos necesarios será declarado como NO APTO en la evaluación curricular."]
[]
[]
[null,"2.  FORMACION ACADEMICA"]
[]
[null,null,"NOMBRE DE LA INSTITUCION","NIVEL ALCANZADO","PROFESIÓN O ESPECIALIDAD\n(AÑO DE ESTUDIOS EN CASO DE TENER SÓLO ESTUDIOS ESCOLARES)",null,"MES/AÑO",null,"Años de estudios","Que documento tiene que sustente lo señalado","(*)  N° de Folio\nPARA SER LLENADO EN LA ETAPA DE LA EVALUACION CURRICULAR"]
[]
[{"$nulls":6},"DESDE\n(mes-año)","HASTA\n(mes-año)"]
[null,"FORMACION ESCOLAR",{"$nulls":4},"/","/"]
[null,"FORMACION TECNICA"]
[null,"FORMACION UNIVERSITARIA"]
[null,"MAESTRÍA"]
[null,"DOCTORADO"]
[null,"OTROS ESTUDIOS (Otras profesiones,  Especialidades y/o Maestrias)"]
[null,"OTROS ESTUDIOS (Otras profesiones,  Especialidades y/o Maestrias)"]
[null,"(*)    DEBERA SER LLENADO OBLIGATORIAMENTE EN LA PRESENTACION DEL CURRICULUM DOCUMENTADO"]
[]
[null,"3.  ESTUDIOS RELACIONADOS A ESPECIALIZACIONES O DIPLOMADOS (RELACIONADO A LOS TERMINOS DE REFERENCIA)."]
[]
[null,"NOMBRE DEL DIPLOMADO","CONDICION","INSTITUCION",null,null,"AÑO QUE REALIZÓ EL DIPLOMADO",null,"HORAS LECTIVAS  DE DURACION DEL DIPLOMADO","Que documento tiene Ud.  que sustente lo señalado","(*)  N° de Folio\nPARA SER LLENADO EN LA ETAPA DE LA EVALUACION CURRICULAR"]
[]
[]
[]
[]
[]
[]
[null,"(*)    DEBERA SER LLENADO OBLIGATORIAMENTE EN LA PRESENTACION DEL CURRICULUM DOCUMENTADO"]
[]
[]
[]
[null,"OTROS DATOS"]
[null,"Se encuentra Usted Colegiado",{"$nulls":4},"Es Ud. Una Persona con Discapacidad",null,null,"NUM CARNET"]
[null,"se encuentra Usted Habilitado",{"$nulls":4},"Ud. Es Licenciado de las Fuerzas Armadas"]
[null,"Pertence Usted al Cuerpo de Gerentes Publicos?"]
[]
[null,"CAPACITACIONES COMPLEMENTARIAS  (ACORDE PARA EL CUMPLIMIENTO DE LOS REQUISITOS MINIMOS)"]
[null,"CURSOS (Seminarios, Computación, Ingles considere agregar el nivel alcanzado, acorde a los requisitos del perfil)",null,"NIVEL",null,null,null,"TIEMPO  DE ESTUDIOS","Que documento tiene que sustente lo señalado",null,"(*)  N° de Folio\nPARA SER LLENADO EN LA ETAPA DE LA EVALUACION CURRICULAR"]
[null,"INGLES"]
[null,"Computación"]
[]
[null,"CURSOS (Seminario, Congresos, Talleres acordes a los requisitos del perfil en los 10 últimos años)",null,"INSTITUCION",null,null,null,"TIEMPO  DE ESTUDIOS  EN HORAS","Que documento tiene que sustente lo señalado",null,"(*)  N° de Folio\nPARA SER LLENADO EN LA ETAPA DE LA EVALUACION CURRICULAR"]
{"$rows_empty":10}
[null,"(*)    DEBERA SER LLENADO OBLIGATORIAMENTE EN LA PRESENTACION DEL CURRICULUM DOCUMENTADO"]
[]
[null,"4.    EXPERIENCIA LABORAL  (COMPLETAR CON AQUELLOS PUESTOS DE TRABAJO AFINES A LAS FUNCIONES DEL SERVICIO SOLICITADO, INICIANDO POR LA EXPERIENCIA MÁS RECIENTE)."]
[]
[]
[null,"EMPRESA Y/O INSTITUCION","UNIDAD ORGANICA / AREA","SECTOR","CARGO / NOMBRE DE LA FUNCION","DESCRIPCIONES DE LAS FUNCIONES PRINCIPALES RELACIONAS AL PUESTO QUE POSTULA","FECHA DE INICIO\nD/M/A","FECHA DE TERMINO\nD/M/A","AÑOS/MESES/DIAS DE EXPERIENCIA","Que documento tiene que sustente lo señalado","(*)  N° de Folio\nPARA SER LLENADO EN LA ETAPA DE LA EVALUACION CURRICULAR"]
[]
[]
[]
[]
[]
[]
[{"$nulls":8},{"$f":"IF(ISBLANK(G88),\"\",IF(ISBLANK(H88),\"\",DATEDIF(G88,H88,\"Y\")&\" a, \"&DATEDIF(G88,H88,\"YM\")&\" m, \"&DATEDIF(G88,H88,\"MD\")&\" d\"))","v":""}]
[{"$nulls":8},""]
[{"$nulls":8},""]
[{"$nulls":4},{"$f":"IF(I82=\"\",0,VALUE(LEFT(I82,FIND(\" \",I82,1)-1)))+IF(I83=\"\",0,VALUE(LEFT(I83,FIND(\" \",I83,1)-1)))+IF(I84=\"\",0,VALUE(LEFT(I84,FIND(\" \",I84,1)-1)))+IF(I85=\"\",0,VALUE(LEFT(I85,FIND(\" \",I85,1)-1)))+IF(I86=\"\",0,VALUE(LEFT(I86,FIND(\" \",I86,1)-1)))+IF(I87=\"\",0,VALUE(LEFT(I87,FIND(\" \",I87,1)-1)))+IF(I88=\"\",0,VALUE(LEFT(I88,FIND(\" \",I88,1)-1)))+IF(I89=\"\",0,VALUE(LEFT(I89,FIND(\" \",I89,1)-1)))+IF(I90=\"\",0,VALUE(LEFT(I90,FIND(\" \",I90,1)-1)))","v":0},{"$f":"IF(I82=\"\",0,VALUE(MID(I82,FIND(\",\",I82,1)+1,FIND(\" \",I82,2)+1)))+IF(I83=\"\",0,VALUE(MID(I83,FIND(\",\",I83,1)+1,FIND(\" \",I83,2)+1)))+IF(I84=\"\",0,VALUE(MID(I84,FIND(\",\",I84,1)+1,FIND(\" \",I84,2)+1)))+IF(I85=\"\",0,VALUE(MID(I85,FIND(\",\",I85,1)+1,FIND(\" \",I85,2)+1)))+IF(I86=\"\",0,VALUE(MID(I86,FIND(\",\",I86,1)+1,FIND(\" \",I86,2)+1)))+IF(I87=\"\",0,VALUE(MID(I87,FIND(\",\",I87,1)+1,FIND(\" \",I87,2)+1)))+IF(I88=\"\",0,VALUE(MID(I88,FIND(\",\",I88,1)+1,FIND(\" \",I88,2)+1)))+IF(I89=\"\",0,VALUE(MID(I89,FIND(\",\",I89,1)+1,FIND(\" \",I89,2)+1)))+IF(I90=\"\",0,VALUE(MID(I90,FIND(\",\",I90,1)+1,FIND(\" \",I90,2)+1)))","v":0},{"$f":"IF(I82=\"\",0,VALUE(MID(I82,FIND(\"m, \",I82,1)+3,2)))+IF(I83=\"\",0,VALUE(MID(I83,FIND(\"m, \",I83,1)+3,2)))+IF(I84=\"\",0,VALUE(MID(I84,FIND(\"m, \",I84,1)+3,2)))+IF(I85=\"\",0,VALUE(MID(I85,FIND(\"m, \",I85,1)+3,2)))+IF(I86=\"\",0,VALUE(MID(I86,FIND(\"m, \",I86,1)+3,2)))+IF(I87=\"\",0,VALUE(MID(I87,FIND(\"m, \",I87,1)+3,2)))+IF(I88=\"\",0,VALUE(MID(I88,FIND(\"m, \",I88,1)+3,2)))+IF(I89=\"\",0,VALUE(MID(I89,FIND(\"m, \",I89,1)+3,2)))+IF(I90=\"\",0,VALUE(MID(I90,FIND(\"m, \",I90,1)+3,2)))","v":0},"TOTAL TIEMPO EXPERIENCIA",{"$f":"(E91+QUOTIENT(F91+QUOTIENT(G91,30),12))&\" a, \"&MOD(F91+QUOTIENT(G91,30),12)&\" m, \"&MOD(G91,30)&\" d\"","v":"0 a, 0 m, 0 d"}]
[]
[null,"(*)    DEBERA SER LLENADO OBLIGATORIAMENTE EN LA PRESENTACION DEL CURRICULUM DOCUMENTADO"]
[]
[null,"FECHA:"]
[]
[null,"DECLARO BAJO JURAMENTO  QUE LA INFORMACIÓN QUE HE PROPORCIONADO VIA CORREO ELECTRONICO, ES VERAZ  Y ASUMO LAS RESPONSABILIDADES Y CONSECUENCIAS LEGALES QUE ELLO PRODUZCA"]

{"sheet":"Hoja2","index":1,"n_rows":3,"n_cols":40,"rows_kept":3,"cut":false,"hidden":true,"merged":[]}
[]
[null,"DNI N°","Nombres y Apellidos","Fecha de Nacimiento  D/M/A","edad","Dirección","Estado Civil","Distrito","Teléfono celular","Teléfono fijo","Correo electrónico","Medio por el cual se enteró del proceso CAS.","condicion","profesion","maestria","diplomado 1","HORAS DEL DIPLOMADO 1","DIPLOMADO 2","HORAS DEL DIPLOMADO 2","INGLES","COMPUTACION","CURSO 1","CURSO 2","CURSO 3","EXPERIENCIA","SECTOR","CARGO/PUESTO","AÑOS DE EXPERIENCIA","EXPERIENCIA","SECTOR","CARGO/PUESTO","AÑOS DE EXPERIENCIA","EXPERIENCIA","SECTOR","CARGO/PUESTO","AÑOS DE EXPERIENCIA","EXPERIENCIA","SECTOR","CARGO/PUESTO","AÑOS DE EXPERIENCIA"]
[null,{"$f":"Hoja1!$D13","v":0},{"$f":"Hoja1!$D15","v":"00:00:00"},{"$f":"Hoja1!$D16","v":"00:00:00"},{"$f":"(TODAY()-D3)/365","v":120.25205479452055},{"$f":"Hoja1!$D17","v":"00:00:00"},{"$f":"Hoja1!$D19","v":"00:00:00"},{"$f":"Hoja1!$D18","v":"00:00:00"},{"$f":"Hoja1!$D20","v":0},{"$f":"Hoja1!$D21","v":0},{"$f":"Hoja1!$D22","v":"00:00:00"},{"$f":"Hoja1!$D23","v":"00:00:00"},{"$f":"Hoja1!$D35","v":"00:00:00"},{"$f":"Hoja1!$E35","v":"00:00:00"},{"$f":"Hoja1!$E36","v":"00:00:00"},{"$f":"Hoja1!$B47","v":"00:00:00"},{"$f":"Hoja1!$I47","v":0},{"$f":"Hoja1!$B48","v":"00:00:00"},{"$f":"Hoja1!$I48","v":0},{"$f":"Hoja1!$D62","v":"00:00:00"},{"$f":"Hoja1!$D63","v":"00:00:00"},{"$f":"Hoja1!$B66","v":"00:00:00"},{"$f":"Hoja1!$B67","v":"00:00:00"},{"$f":"Hoja1!$B68","v":"00:00:00"},{"$f":"Hoja1!$C82","v":"00:00:00"},{"$f":"Hoja1!$D82","v":"00:00:00"},{"$f":"Hoja1!$E82","v":"00:00:00"},{"$f":"Hoja1!$I82","v":"00:00:00"},{"$f":"Hoja1!$C83","v":"00:00:00"},{"$f":"Hoja1!$D83","v":"00:00:00"},{"$f":"Hoja1!$E83","v":"00:00:00"},{"$f":"Hoja1!$I83","v":0},{"$f":"Hoja1!$C84","v":"00:00:00"},{"$f":"Hoja1!$D84","v":"00:00:00"},{"$f":"Hoja1!$E84","v":"00:00:00"},{"$f":"Hoja1!$I84","v":"00:00:00"},{"$f":"Hoja1!$C85","v":"00:00:00"},{"$f":"Hoja1!$D85","v":"00:00:00"},{"$f":"Hoja1!$E85","v":"00:00:00"},{"$f":"Hoja1!$I85","v":0}]

{"sheet":"Hoja3","index":2,"n_rows":0,"n_cols":0,"rows_kept":0,"cut":false,"hidden":true,"merged":[]}